[Event "November 21 Early 2023"]
[Site "https://www.chess.com"]
[Date "2023.11.21"]
[Round "4"]
[White "Zivic, Dragan"]
[Black "Tomaszewski, Kacper"]
[Result "1-0"]
[Board "204"]
[TimeControl "180+1"]
[WhiteFideId "904740"]
[BlackFideId "1127373"]
[WhiteElo "2073"]
[BlackElo "2211"]
[WhiteTeam "SRB"]
[BlackTeam "POL"]
[WhiteClock "0:00:57"]
[BlackClock "0:01:24"]

1. c4 {[%clk 0:03:00]}  e6 {[%clk 0:02:56]} 2. Nc3 {[%clk 0:03:00]}  d5 {[%clk 0:02:51]} 3. cxd5 {[%clk 0:02:59]}  exd5 {[%clk 0:02:51]} 4. d4 {[%clk 0:02:59]}  c6 {[%clk 0:02:50]} 5. Bf4 {[%clk 0:02:57]}  Nf6 {[%clk 0:02:44]} 6. e3 {[%clk 0:02:57]}  Bf5 {[%clk 0:02:42]} 7. Bd3 {[%clk 0:02:56]}  Bxd3 {[%clk 0:02:41]} 8. Qxd3 {[%clk 0:02:56]}  Bd6 {[%clk 0:02:42]} 9. Bxd6 {[%clk 0:02:55]}  Qxd6 {[%clk 0:02:43]} 10. Nf3 {[%clk 0:02:55]}  O-O {[%clk 0:02:43]} 11. O-O {[%clk 0:02:54]}  Nbd7 {[%clk 0:02:43]} 12. Rfe1 {[%clk 0:02:51]}  Rfe8 {[%clk 0:02:43]} 13. Rad1 {[%clk 0:02:45]}  Re7 {[%clk 0:02:41]} 14. e4 {[%clk 0:02:42]}  dxe4 {[%clk 0:02:41]} 15. Nxe4 {[%clk 0:02:42]}  Nxe4 {[%clk 0:02:41]} 16. Rxe4 {[%clk 0:02:42]}  Rae8 {[%clk 0:02:42]} 17. Rxe7 {[%clk 0:02:40]}  Rxe7 {[%clk 0:02:42]} 18. a3 {[%clk 0:02:40]}  Nf6 {[%clk 0:02:39]} 19. Ne5 {[%clk 0:02:38]}  h6 {[%clk 0:02:38]} 20. h3 {[%clk 0:02:37]}  Nd7 {[%clk 0:02:34]} 21. Nxd7 {[%clk 0:02:31]}  Rxd7 {[%clk 0:02:35]} 22. Qe4 {[%clk 0:02:28]}  Qd5 {[%clk 0:02:31]} 23. Re1 {[%clk 0:02:27]}  Qxe4 {[%clk 0:02:29]} 24. Rxe4 {[%clk 0:02:28]}  Kf8 {[%clk 0:02:30]} 25. Kf1 {[%clk 0:02:27]}  Re7 {[%clk 0:02:30]} 26. Re3 {[%clk 0:02:22]}  Rxe3 {[%clk 0:02:28]} 27. fxe3 {[%clk 0:02:23]}  Ke7 {[%clk 0:02:29]} 28. Ke2 {[%clk 0:02:23]}  Ke6 {[%clk 0:02:30]} 29. e4 {[%clk 0:02:23]}  f5 {[%clk 0:02:30]} 30. Ke3 {[%clk 0:02:20]}  g5 {[%clk 0:02:28]} 31. b4 {[%clk 0:02:17]}  b6 {[%clk 0:02:23]} 32. g3 {[%clk 0:02:07]}  a6 {[%clk 0:02:19]} 33. h4 {[%clk 0:02:06]}  gxh4 {[%clk 0:02:15]} 34. gxh4 {[%clk 0:02:04]}  fxe4 {[%clk 0:02:14]} 35. Kxe4 {[%clk 0:02:04]}  Kd6 {[%clk 0:02:15]} 36. h5 {[%clk 0:02:00]}  Ke6 {[%clk 0:02:15]} 37. Kf4 {[%clk 0:01:59]}  Kd5 {[%clk 0:02:12]} 38. Kf5 {[%clk 0:01:59]}  Kxd4 {[%clk 0:02:12]} 39. Kg6 {[%clk 0:02:00]}  c5 {[%clk 0:02:13]} 40. bxc5 {[%clk 0:01:55]}  bxc5 {[%clk 0:02:13]} 41. Kxh6 {[%clk 0:01:55]}  c4 {[%clk 0:02:13]} 42. Kg6 {[%clk 0:01:55]}  c3 {[%clk 0:02:14]} 43. h6 {[%clk 0:01:55]}  c2 {[%clk 0:02:15]} 44. h7 {[%clk 0:01:56]}  c1=Q {[%clk 0:02:15]} 45. h8=Q+ {[%clk 0:01:56]}  Ke4 {[%clk 0:02:08]} 46. Qe8+ {[%clk 0:01:55]}  Kf4 {[%clk 0:02:05]} 47. Qa4+ {[%clk 0:01:53]}  Ke5 {[%clk 0:02:00]} 48. Qa5+ {[%clk 0:01:51]}  Ke4 {[%clk 0:01:54]} 49. Qxa6 {[%clk 0:01:49]}  Qg1+ {[%clk 0:01:52]} 50. Kf7 {[%clk 0:01:45]}  Qf2+ {[%clk 0:01:50]} 51. Ke8 {[%clk 0:01:44]}  Qc5 {[%clk 0:01:43]} 52. a4 {[%clk 0:01:36]}  Kd5 {[%clk 0:01:40]} 53. Kd7 {[%clk 0:01:34]}  Qc4 {[%clk 0:01:24]} 54. Qe6+ {[%clk 0:01:03]}  Kc5 {[%clk 0:01:24]} 55. Qd6# {[%clk 0:00:57]} 1-0

[Event "November 21 Early 2023"]
[Site "https://www.chess.com"]
[Date "2023.11.21"]
[Round "4"]
[White "Malikova777"]
[Black "Filippova, Margarita"]
[Result "1-0"]
[Board "206"]
[TimeControl "180+1"]
[BlackFideId "34199680"]
[WhiteElo "2272"]
[BlackElo "1916"]
[BlackTeam "RUS"]
[WhiteClock "0:00:12"]
[BlackClock "0:00:14"]

1. d4 {[%clk 0:03:00]}  d5 {[%clk 0:02:59]} 2. c4 {[%clk 0:03:00]}  e6 {[%clk 0:02:59]} 3. Nc3 {[%clk 0:02:59]}  c6 {[%clk 0:02:56]} 4. cxd5 {[%clk 0:02:59]}  exd5 {[%clk 0:02:57]} 5. Qc2 {[%clk 0:02:57]}  Nf6 {[%clk 0:02:57]} 6. Bg5 {[%clk 0:02:57]}  h6 {[%clk 0:02:57]} 7. Bh4 {[%clk 0:02:53]}  Be7 {[%clk 0:02:57]} 8. e3 {[%clk 0:02:53]}  O-O {[%clk 0:02:57]} 9. Bd3 {[%clk 0:02:52]}  Nbd7 {[%clk 0:02:58]} 10. Nf3 {[%clk 0:02:50]}  Re8 {[%clk 0:02:58]} 11. O-O {[%clk 0:02:49]}  Ne4 {[%clk 0:02:57]} 12. Bxe7 {[%clk 0:02:32]}  Qxe7 {[%clk 0:02:58]} 13. Bxe4 {[%clk 0:02:24]}  dxe4 {[%clk 0:02:59]} 14. Nd2 {[%clk 0:02:25]}  Nf6 {[%clk 0:02:59]} 15. a3 {[%clk 0:02:22]}  Bf5 {[%clk 0:02:54]} 16. b4 {[%clk 0:02:22]}  a6 {[%clk 0:02:50]} 17. Nc4 {[%clk 0:02:21]}  Nd5 {[%clk 0:02:46]} 18. Nxd5 {[%clk 0:02:15]}  cxd5 {[%clk 0:02:47]} 19. Nb6 {[%clk 0:02:15]}  Rad8 {[%clk 0:02:46]} 20. Rac1 {[%clk 0:02:13]}  h5 {[%clk 0:02:29]} 21. Qc5 {[%clk 0:02:06]}  Qg5 {[%clk 0:02:28]} 22. Nxd5 {[%clk 0:02:02]}  Kh7 {[%clk 0:02:05]} 23. Nf4 {[%clk 0:01:47]}  h4 {[%clk 0:02:00]} 24. h3 {[%clk 0:01:45]}  Qf6 {[%clk 0:01:59]} 25. Rfd1 {[%clk 0:01:19]}  g5 {[%clk 0:01:58]} 26. Nd5 {[%clk 0:01:18]}  Rxd5 {[%clk 0:01:40]} 27. Qxd5 {[%clk 0:01:19]}  g4 {[%clk 0:01:40]} 28. Rc5 {[%clk 0:01:15]}  Kg6 {[%clk 0:01:34]} 29. hxg4 {[%clk 0:00:59]}  Bxg4 {[%clk 0:01:31]} 30. Rdc1 {[%clk 0:00:56]}  h3 {[%clk 0:01:31]} 31. gxh3 {[%clk 0:00:54]}  Bf3 {[%clk 0:01:24]} 32. Qxb7 {[%clk 0:00:44]}  Rg8 {[%clk 0:01:00]} 33. Kf1 {[%clk 0:00:33]}  Qh4 {[%clk 0:00:54]} 34. Rc6+ {[%clk 0:00:25]}  f6 {[%clk 0:00:49]} 35. Qd7 {[%clk 0:00:25]}  Qg5 {[%clk 0:00:43]} 36. Ke1 {[%clk 0:00:17]}  Qg1+ {[%clk 0:00:42]} 37. Kd2 {[%clk 0:00:18]}  Qxf2+ {[%clk 0:00:43]} 38. Kc3 {[%clk 0:00:18]}  Qxe3+ {[%clk 0:00:44]} 39. Kb2 {[%clk 0:00:13]}  Qd2+ {[%clk 0:00:16]} 40. R1c2 {[%clk 0:00:13]}  Qd3 {[%clk 0:00:17]} 41. Qd6 {[%clk 0:00:12]}  Bd1 {[%clk 0:00:16]} 42. Qxf6+ {[%clk 0:00:11]}  Kh7 {[%clk 0:00:14]} 43. Qh6# {[%clk 0:00:12]} 1-0

[Event "November 21 Early 2023"]
[Site "https://www.chess.com"]
[Date "2023.11.21"]
[Round "4"]
[White "Skurikhin, Dmitrij"]
[Black "ilya2700"]
[Result "1-0"]
[Board "208"]
[TimeControl "180+1"]
[WhiteFideId "4161297"]
[WhiteElo "2197"]
[BlackElo "2228"]
[WhiteTeam "RUS"]
[WhiteClock "0:00:10"]
[BlackClock "0:00:00"]

1. d4 {[%clk 0:03:00]}  Nf6 {[%clk 0:02:59]} 2. Nf3 {[%clk 0:02:56]}  g6 {[%clk 0:02:59]} 3. c4 {[%clk 0:02:55]}  Bg7 {[%clk 0:02:58]} 4. Nc3 {[%clk 0:02:55]}  O-O {[%clk 0:02:56]} 5. e4 {[%clk 0:02:55]}  d6 {[%clk 0:02:56]} 6. Be2 {[%clk 0:02:55]}  c5 {[%clk 0:02:55]} 7. O-O {[%clk 0:02:53]}  cxd4 {[%clk 0:02:54]} 8. Nxd4 {[%clk 0:02:54]}  Nc6 {[%clk 0:02:54]} 9. Be3 {[%clk 0:02:53]}  Bd7 {[%clk 0:02:53]} 10. f3 {[%clk 0:02:47]}  Nxd4 {[%clk 0:02:52]} 11. Bxd4 {[%clk 0:02:47]}  Bc6 {[%clk 0:02:53]} 12. Kh1 {[%clk 0:02:46]}  Nd7 {[%clk 0:02:53]} 13. Bxg7 {[%clk 0:02:45]}  Kxg7 {[%clk 0:02:54]} 14. b4 {[%clk 0:02:45]}  b6 {[%clk 0:02:54]} 15. Qd4+ {[%clk 0:02:45]}  Kg8 {[%clk 0:02:53]} 16. a4 {[%clk 0:02:43]}  Qc7 {[%clk 0:02:52]} 17. a5 {[%clk 0:02:42]}  Nf6 {[%clk 0:02:11]} 18. b5 {[%clk 0:02:37]}  Bd7 {[%clk 0:01:50]} 19. Ra4 {[%clk 0:02:07]}  Be6 {[%clk 0:01:25]} 20. Rfa1 {[%clk 0:02:02]}  Rab8 {[%clk 0:01:24]} 21. axb6 {[%clk 0:02:00]}  axb6 {[%clk 0:01:24]} 22. Nd5 {[%clk 0:01:54]}  Bxd5 {[%clk 0:01:24]} 23. cxd5 {[%clk 0:01:54]}  Nd7 {[%clk 0:01:24]} 24. Ra7 {[%clk 0:01:52]}  Rb7 {[%clk 0:01:24]} 25. Rxb7 {[%clk 0:01:48]}  Qxb7 {[%clk 0:01:25]} 26. h4 {[%clk 0:01:39]}  Ra8 {[%clk 0:01:24]} 27. Ra6 {[%clk 0:01:38]}  Nc5 {[%clk 0:01:22]} 28. Rxa8+ {[%clk 0:01:37]}  Qxa8 {[%clk 0:01:23]} 29. h5 {[%clk 0:01:38]}  Qa2 {[%clk 0:01:20]} 30. h6 {[%clk 0:01:31]}  f6 {[%clk 0:01:19]} 31. Qe3 {[%clk 0:01:28]}  Qa1+ {[%clk 0:01:15]} 32. Kh2 {[%clk 0:01:27]}  Qe5+ {[%clk 0:01:09]} 33. Kg1 {[%clk 0:01:11]}  f5 {[%clk 0:01:00]} 34. Qa3 {[%clk 0:00:52]}  fxe4 {[%clk 0:00:58]} 35. Qa8+ {[%clk 0:00:51]}  Kf7 {[%clk 0:00:57]} 36. fxe4 {[%clk 0:00:42]}  Qxe4 {[%clk 0:00:56]} 37. Bf3 {[%clk 0:00:40]}  Qe3+ {[%clk 0:00:56]} 38. Kh2 {[%clk 0:00:36]}  Qxh6+ {[%clk 0:00:55]} 39. Kg3 {[%clk 0:00:37]}  Qg5+ {[%clk 0:00:55]} 40. Kh2 {[%clk 0:00:37]}  Qf4+ {[%clk 0:00:54]} 41. Kg1 {[%clk 0:00:33]}  Qd4+ {[%clk 0:00:49]} 42. Kh2 {[%clk 0:00:33]}  Qe5+ {[%clk 0:00:49]} 43. Kg1 {[%clk 0:00:32]}  Qd4+ {[%clk 0:00:31]} 44. Kh2 {[%clk 0:00:32]}  g5 {[%clk 0:00:17]} 45. Qc8 {[%clk 0:00:23]}  Qf4+ {[%clk 0:00:16]} 46. Kg1 {[%clk 0:00:21]}  Qe3+ {[%clk 0:00:15]} 47. Kh2 {[%clk 0:00:21]}  Qf4+ {[%clk 0:00:15]} 48. Kg1 {[%clk 0:00:21]}  Nd3 {[%clk 0:00:13]} 49. Qe6+ {[%clk 0:00:16]}  Kf8 {[%clk 0:00:13]} 50. Qc8+ {[%clk 0:00:16]}  Kg7 {[%clk 0:00:12]} 51. Qe6 {[%clk 0:00:16]}  Qf6 {[%clk 0:00:12]} 52. Qe3 {[%clk 0:00:13]}  Ne5 {[%clk 0:00:11]} 53. Qxb6 {[%clk 0:00:13]}  Nxf3+ {[%clk 0:00:10]} 54. gxf3 {[%clk 0:00:14]}  Qxf3 {[%clk 0:00:09]} 55. Qc6 {[%clk 0:00:13]}  g4 {[%clk 0:00:09]} 56. Qc2 {[%clk 0:00:11]}  g3 {[%clk 0:00:07]} 57. Qb2+ {[%clk 0:00:11]}  Kf7 {[%clk 0:00:06]} 58. b6 {[%clk 0:00:12]}  Qe3+ {[%clk 0:00:02]} 59. Kg2 {[%clk 0:00:12]}  Qe4+ {[%clk 0:00:03]} 60. Kxg3 {[%clk 0:00:12]}  Qe3+ {[%clk 0:00:03]} 61. Kg2 {[%clk 0:00:11]}  Qe4+ {[%clk 0:00:01]} 62. Kf2 {[%clk 0:00:11]}  Qf5+ {[%clk 0:00:01]} 63. Ke1 {[%clk 0:00:11]}  Qc8 {[%clk 0:00:01]} 64. b7 {[%clk 0:00:11]}  Qb8 {[%clk 0:00:00]} 65. Qb6 {[%clk 0:00:10]} 1-0

[Event "November 21 Early 2023"]
[Site "https://www.chess.com"]
[Date "2023.11.21"]
[Round "4"]
[White "Nechitaylo_Nikita"]
[Black "Mejia, Cherry Ann"]
[Result "0-1"]
[Board "209"]
[TimeControl "180+1"]
[BlackFideId "5206880"]
[WhiteElo "2197"]
[BlackElo "2009"]
[BlackTeam "PHI"]
[WhiteClock "0:00:15"]
[BlackClock "0:01:28"]

1. d4 {[%clk 0:03:00]}  d5 {[%clk 0:02:58]} 2. c4 {[%clk 0:03:01]}  dxc4 {[%clk 0:02:58]} 3. Nc3 {[%clk 0:03:01]}  a6 {[%clk 0:02:58]} 4. e3 {[%clk 0:03:02]}  b5 {[%clk 0:02:55]} 5. a4 {[%clk 0:02:58]}  b4 {[%clk 0:02:54]} 6. Na2 {[%clk 0:02:57]}  e6 {[%clk 0:02:51]} 7. Bxc4 {[%clk 0:02:54]}  Bb7 {[%clk 0:02:51]} 8. Nf3 {[%clk 0:02:53]}  c5 {[%clk 0:02:50]} 9. O-O {[%clk 0:02:45]}  Nf6 {[%clk 0:02:47]} 10. Bd2 {[%clk 0:02:30]}  Nbd7 {[%clk 0:02:43]} 11. dxc5 {[%clk 0:02:29]}  Bxc5 {[%clk 0:02:29]} 12. Bxb4 {[%clk 0:02:27]}  Bxb4 {[%clk 0:02:26]} 13. Nxb4 {[%clk 0:02:27]}  Qb6 {[%clk 0:02:27]} 14. Nc2 {[%clk 0:01:47]}  O-O {[%clk 0:02:23]} 15. Ncd4 {[%clk 0:01:47]}  Rac8 {[%clk 0:02:22]} 16. Bd3 {[%clk 0:01:43]}  Rfd8 {[%clk 0:02:20]} 17. Rc1 {[%clk 0:01:39]}  Nc5 {[%clk 0:02:15]} 18. Bc2 {[%clk 0:01:13]}  Qxb2 {[%clk 0:02:06]} 19. Rb1 {[%clk 0:01:11]}  Qc3 {[%clk 0:02:04]} 20. Qe2 {[%clk 0:01:01]}  Bxf3 {[%clk 0:02:00]} 21. Nxf3 {[%clk 0:01:01]}  Rb8 {[%clk 0:01:48]} 22. Rxb8 {[%clk 0:00:49]}  Rxb8 {[%clk 0:01:47]} 23. Rc1 {[%clk 0:00:50]}  Qb2 {[%clk 0:01:45]} 24. Rb1 {[%clk 0:00:43]}  Qxb1+ {[%clk 0:01:44]} 25. Bxb1 {[%clk 0:00:37]}  Rxb1+ {[%clk 0:01:44]} 26. Ne1 {[%clk 0:00:37]}  Nd3 {[%clk 0:01:44]} 27. Kf1 {[%clk 0:00:28]}  Rxe1+ {[%clk 0:01:43]} 28. Qxe1 {[%clk 0:00:28]}  Nxe1 {[%clk 0:01:44]} 29. Kxe1 {[%clk 0:00:29]}  Kf8 {[%clk 0:01:44]} 30. Kd2 {[%clk 0:00:29]}  Ke7 {[%clk 0:01:43]} 31. Kc3 {[%clk 0:00:30]}  Nd5+ {[%clk 0:01:42]} 32. Kc4 {[%clk 0:00:30]}  Kd6 {[%clk 0:01:42]} 33. g3 {[%clk 0:00:31]}  Nb6+ {[%clk 0:01:40]} 34. Kb4 {[%clk 0:00:31]}  Kc7 {[%clk 0:01:37]} 35. e4 {[%clk 0:00:28]}  Kc6 {[%clk 0:01:34]} 36. f4 {[%clk 0:00:25]}  f6 {[%clk 0:01:33]} 37. g4 {[%clk 0:00:25]}  e5 {[%clk 0:01:32]} 38. f5 {[%clk 0:00:24]}  Nd7 {[%clk 0:01:30]} 39. h4 {[%clk 0:00:21]}  Nc5 {[%clk 0:01:29]} 40. g5 {[%clk 0:00:21]}  Nxe4 {[%clk 0:01:29]} 41. g6 {[%clk 0:00:20]}  h6 {[%clk 0:01:28]} 42. Ka5 {[%clk 0:00:15]}  Kb7 {[%clk 0:01:28]} 0-1

[Event "November 21 Early 2023"]
[Site "https://www.chess.com"]
[Date "2023.11.21"]
[Round "4"]
[White "Dilmukhametov, Artur"]
[Black "Osiecki, Stanislaw"]
[Result "1-0"]
[Board "212"]
[TimeControl "180+1"]
[WhiteFideId "24179922"]
[BlackFideId "1102990"]
[WhiteElo "2176"]
[BlackElo "2048"]
[WhiteTeam "RUS"]
[BlackTeam "POL"]
[WhiteClock "0:00:17"]
[BlackClock "0:00:00"]

1. e4 {[%clk 0:03:00]}  e6 {[%clk 0:02:45]} 2. d4 {[%clk 0:03:00]}  d5 {[%clk 0:02:45]} 3. e5 {[%clk 0:03:00]}  c5 {[%clk 0:02:45]} 4. c3 {[%clk 0:03:00]}  Nc6 {[%clk 0:02:45]} 5. Nf3 {[%clk 0:03:00]}  Qb6 {[%clk 0:02:45]} 6. a3 {[%clk 0:03:01]}  c4 {[%clk 0:02:45]} 7. Nbd2 {[%clk 0:02:59]}  Na5 {[%clk 0:02:45]} 8. Rb1 {[%clk 0:02:55]}  Bd7 {[%clk 0:02:45]} 9. g3 {[%clk 0:02:54]}  O-O-O {[%clk 0:02:43]} 10. h4 {[%clk 0:02:43]}  h6 {[%clk 0:02:42]} 11. Bh3 {[%clk 0:02:43]}  Kb8 {[%clk 0:02:37]} 12. O-O {[%clk 0:02:35]}  Rc8 {[%clk 0:02:36]} 13. Ne1 {[%clk 0:02:35]}  Ne7 {[%clk 0:02:35]} 14. Nc2 {[%clk 0:02:34]}  Nec6 {[%clk 0:02:34]} 15. Nb4 {[%clk 0:02:33]}  Nxb4 {[%clk 0:02:18]} 16. axb4 {[%clk 0:02:34]}  Nc6 {[%clk 0:02:17]} 17. b3 {[%clk 0:02:32]}  cxb3 {[%clk 0:02:11]} 18. Nxb3 {[%clk 0:02:33]}  a5 {[%clk 0:01:59]} 19. bxa5 {[%clk 0:02:25]}  Nxa5 {[%clk 0:01:59]} 20. Nd2 {[%clk 0:02:01]}  Qa6 {[%clk 0:01:53]} 21. Bb2 {[%clk 0:01:50]}  Nc4 {[%clk 0:01:41]} 22. Nxc4 {[%clk 0:01:44]}  Qxc4 {[%clk 0:01:36]} 23. Bg4 {[%clk 0:01:38]}  Bb5 {[%clk 0:01:34]} 24. Re1 {[%clk 0:01:37]}  Qc6 {[%clk 0:01:31]} 25. Ba1 {[%clk 0:01:30]}  Ba6 {[%clk 0:01:22]} 26. Qd2 {[%clk 0:01:17]}  Be7 {[%clk 0:01:20]} 27. Qa2 {[%clk 0:01:14]}  h5 {[%clk 0:01:13]} 28. Bd1 {[%clk 0:01:09]}  g5 {[%clk 0:01:09]} 29. Ba4 {[%clk 0:01:09]}  Qc4 {[%clk 0:01:00]} 30. Bb3 {[%clk 0:01:06]}  Qc7 {[%clk 0:00:53]} 31. Bxd5 {[%clk 0:01:00]}  exd5 {[%clk 0:00:48]} 32. Qxa6 {[%clk 0:01:00]}  gxh4 {[%clk 0:00:45]} 33. Kg2 {[%clk 0:00:39]}  hxg3 {[%clk 0:00:38]} 34. fxg3 {[%clk 0:00:38]}  Qc6 {[%clk 0:00:34]} 35. Rb6 {[%clk 0:00:30]}  Qd7 {[%clk 0:00:27]} 36. Reb1 {[%clk 0:00:22]}  Rc7 {[%clk 0:00:00]} 37. R1b5 {[%clk 0:00:17]} 1-0

[Event "November 21 Early 2023"]
[Site "https://www.chess.com"]
[Date "2023.11.21"]
[Round "4"]
[White "Ongut, Tamas Gunes"]
[Black "Rutten, Alexander"]
[Result "0-1"]
[Board "213"]
[TimeControl "180+1"]
[WhiteFideId "770280"]
[BlackFideId "1052063"]
[WhiteElo "2148"]
[BlackElo "2124"]
[WhiteTeam "HUN"]
[BlackTeam "NED"]
[WhiteClock "0:00:28"]
[BlackClock "0:00:24"]

1. Nh3 {[%clk 0:02:58]}  d5 {[%clk 0:02:58]} 2. Nf4 {[%clk 0:02:51]}  e5 {[%clk 0:02:57]} 3. Nh5 {[%clk 0:02:48]}  g6 {[%clk 0:02:56]} 4. Ng3 {[%clk 0:02:48]}  Bg7 {[%clk 0:02:56]} 5. d3 {[%clk 0:02:42]}  Ne7 {[%clk 0:02:53]} 6. h4 {[%clk 0:02:42]}  h5 {[%clk 0:02:53]} 7. Nc3 {[%clk 0:02:40]}  Nbc6 {[%clk 0:02:50]} 8. e4 {[%clk 0:02:38]}  d4 {[%clk 0:02:50]} 9. Nce2 {[%clk 0:02:38]}  Be6 {[%clk 0:02:48]} 10. f4 {[%clk 0:02:37]}  Qd7 {[%clk 0:02:43]} 11. fxe5 {[%clk 0:02:30]}  Nxe5 {[%clk 0:02:41]} 12. Nf4 {[%clk 0:02:30]}  Ng4 {[%clk 0:02:39]} 13. Be2 {[%clk 0:02:25]}  Ne3 {[%clk 0:02:37]} 14. Bxe3 {[%clk 0:02:25]}  dxe3 {[%clk 0:02:38]} 15. c3 {[%clk 0:02:24]}  Be5 {[%clk 0:02:33]} 16. O-O {[%clk 0:02:22]}  Qd6 {[%clk 0:02:30]} 17. Nxe6 {[%clk 0:02:09]}  Qxe6 {[%clk 0:02:30]} 18. Rf3 {[%clk 0:02:05]}  f5 {[%clk 0:02:18]} 19. d4 {[%clk 0:01:57]}  Bxg3 {[%clk 0:02:14]} 20. Rxg3 {[%clk 0:01:55]}  Qxe4 {[%clk 0:02:13]} 21. Bf3 {[%clk 0:01:53]}  Qxh4 {[%clk 0:02:12]} 22. Rh3 {[%clk 0:01:45]}  Qf2+ {[%clk 0:02:11]} 23. Kh1 {[%clk 0:01:46]}  O-O-O {[%clk 0:02:07]} 24. Qb3 {[%clk 0:01:41]}  c6 {[%clk 0:02:00]} 25. Qa3 {[%clk 0:01:25]}  Nd5 {[%clk 0:01:52]} 26. Qxa7 {[%clk 0:01:23]}  Nc7 {[%clk 0:01:40]} 27. d5 {[%clk 0:01:13]}  Nxd5 {[%clk 0:01:39]} 28. Bxd5 {[%clk 0:01:12]}  cxd5 {[%clk 0:01:31]} 29. Rxe3 {[%clk 0:01:11]}  Rhe8 {[%clk 0:00:27]} 30. Qa8+ {[%clk 0:01:08]}  Kc7 {[%clk 0:00:26]} 31. Qa5+ {[%clk 0:00:42]}  Kb8 {[%clk 0:00:25]} 32. Re7 {[%clk 0:00:28]}  Qh4+ {[%clk 0:00:24]} 0-1

[Event "November 21 Early 2023"]
[Site "https://www.chess.com"]
[Date "2023.11.21"]
[Round "4"]
[White "Pasmendjambvirgulptipon98"]
[Black "Nilsen, Tobias Lang"]
[Result "0-1"]
[Board "214"]
[TimeControl "180+1"]
[BlackFideId "1521624"]
[WhiteElo "2215"]
[BlackElo "2221"]
[BlackTeam "NOR"]
[WhiteClock "0:00:00"]
[BlackClock "0:00:16"]

1. c4 {[%clk 0:03:00]}  c5 {[%clk 0:02:59]} 2. Nc3 {[%clk 0:03:00]}  g6 {[%clk 0:03:00]} 3. Nf3 {[%clk 0:02:55]}  Bg7 {[%clk 0:03:01]} 4. d3 {[%clk 0:02:54]}  Nc6 {[%clk 0:03:02]} 5. g3 {[%clk 0:02:53]}  d6 {[%clk 0:03:02]} 6. Bg2 {[%clk 0:02:54]}  Bf5 {[%clk 0:03:02]} 7. O-O {[%clk 0:02:53]}  Qd7 {[%clk 0:03:02]} 8. e4 {[%clk 0:02:47]}  Bh3 {[%clk 0:03:02]} 9. Bxh3 {[%clk 0:02:35]}  Qxh3 {[%clk 0:03:03]} 10. Ng5 {[%clk 0:02:35]}  Qd7 {[%clk 0:03:03]} 11. f4 {[%clk 0:02:28]}  Nf6 {[%clk 0:03:00]} 12. Nd5 {[%clk 0:02:14]}  h6 {[%clk 0:02:59]} 13. Nf3 {[%clk 0:02:09]}  e6 {[%clk 0:02:59]} 14. Nxf6+ {[%clk 0:02:05]}  Bxf6 {[%clk 0:03:00]} 15. Rb1 {[%clk 0:02:01]}  O-O {[%clk 0:02:59]} 16. Be3 {[%clk 0:02:01]}  b6 {[%clk 0:02:59]} 17. f5 {[%clk 0:01:48]}  Bg7 {[%clk 0:02:59]} 18. fxg6 {[%clk 0:01:43]}  fxg6 {[%clk 0:02:59]} 19. Qe2 {[%clk 0:01:38]}  d5 {[%clk 0:02:56]} 20. Nh4 {[%clk 0:01:31]}  Kh7 {[%clk 0:02:54]} 21. Qg4 {[%clk 0:01:23]}  Ne5 {[%clk 0:02:53]} 22. Qe2 {[%clk 0:01:20]}  g5 {[%clk 0:02:40]} 23. Ng2 {[%clk 0:01:08]}  g4 {[%clk 0:02:31]} 24. Nf4 {[%clk 0:01:02]}  Nf3+ {[%clk 0:02:30]} 25. Kh1 {[%clk 0:01:02]}  dxe4 {[%clk 0:02:25]} 26. dxe4 {[%clk 0:01:02]}  Rad8 {[%clk 0:02:20]} 27. h3 {[%clk 0:00:51]}  e5 {[%clk 0:02:06]} 28. Nd5 {[%clk 0:00:48]}  Qe6 {[%clk 0:01:55]} 29. Rbd1 {[%clk 0:00:40]}  h5 {[%clk 0:01:50]} 30. hxg4 {[%clk 0:00:31]}  hxg4 {[%clk 0:01:49]} 31. Kg2 {[%clk 0:00:30]}  Kg6 {[%clk 0:01:44]} 32. Bc1 {[%clk 0:00:20]}  Rh8 {[%clk 0:01:41]} 33. Rh1 {[%clk 0:00:20]}  Qf7 {[%clk 0:01:24]} 34. Qe3 {[%clk 0:00:19]}  Rdf8 {[%clk 0:01:10]} 35. Rdf1 {[%clk 0:00:16]}  Qe6 {[%clk 0:00:44]} 36. Nc7 {[%clk 0:00:13]}  Qd7 {[%clk 0:00:40]} 37. Nd5 {[%clk 0:00:13]}  b5 {[%clk 0:00:37]} 38. b3 {[%clk 0:00:08]}  bxc4 {[%clk 0:00:34]} 39. bxc4 {[%clk 0:00:09]}  Qa4 {[%clk 0:00:33]} 40. Qxc5 {[%clk 0:00:08]}  Rxh1 {[%clk 0:00:17]} 41. Rxh1 {[%clk 0:00:03]}  Qc2+ {[%clk 0:00:17]} 42. Qf2 {[%clk 0:00:03]}  Ne1+ {[%clk 0:00:17]} 43. Rxe1 {[%clk 0:00:00]}  Qxf2+ {[%clk 0:00:16]} 0-1

[Event "November 21 Early 2023"]
[Site "https://www.chess.com"]
[Date "2023.11.21"]
[Round "4"]
[White "EdmundPlayer"]
[Black "FunnyDuck66"]
[Result "1-0"]
[Board "215"]
[TimeControl "180+1"]
[WhiteElo "2196"]
[BlackElo "2475"]
[WhiteClock "0:00:08"]
[BlackClock "0:00:00"]

1. Nc3 {[%clk 0:03:00]}  Nf6 {[%clk 0:02:54]} 2. e4 {[%clk 0:02:58]}  d6 {[%clk 0:02:46]} 3. d4 {[%clk 0:02:57]}  Nbd7 {[%clk 0:02:42]} 4. Nf3 {[%clk 0:02:44]}  e5 {[%clk 0:02:39]} 5. Bc4 {[%clk 0:02:43]}  Be7 {[%clk 0:02:37]} 6. O-O {[%clk 0:02:43]}  O-O {[%clk 0:02:37]} 7. Re1 {[%clk 0:02:42]}  c6 {[%clk 0:02:28]} 8. a4 {[%clk 0:02:42]}  Qc7 {[%clk 0:02:28]} 9. b3 {[%clk 0:02:13]}  b6 {[%clk 0:01:55]} 10. Bb2 {[%clk 0:02:08]}  a5 {[%clk 0:01:53]} 11. d5 {[%clk 0:01:48]}  c5 {[%clk 0:01:44]} 12. Nb5 {[%clk 0:01:44]}  Qd8 {[%clk 0:01:44]} 13. Nh4 {[%clk 0:01:08]}  g6 {[%clk 0:01:39]} 14. f4 {[%clk 0:01:04]}  exf4 {[%clk 0:01:27]} 15. e5 {[%clk 0:00:35]}  Ng4 {[%clk 0:01:08]} 16. Qxg4 {[%clk 0:00:25]}  Nxe5 {[%clk 0:01:06]} 17. Qxf4 {[%clk 0:00:20]}  Bxh4 {[%clk 0:00:43]} 18. Rxe5 {[%clk 0:00:17]}  dxe5 {[%clk 0:00:35]} 19. Qxe5 {[%clk 0:00:18]}  f6 {[%clk 0:00:34]} 20. Qe4 {[%clk 0:00:10]}  Bg5 {[%clk 0:00:24]} 21. d6+ {[%clk 0:00:10]}  Kg7 {[%clk 0:00:22]} 22. Qxa8 {[%clk 0:00:10]}  Qd7 {[%clk 0:00:16]} 23. Re1 {[%clk 0:00:08]}  Bb7 {[%clk 0:00:13]} 24. Re7+ {[%clk 0:00:07]}  Qxe7 {[%clk 0:00:13]} 25. dxe7 {[%clk 0:00:07]}  Rxa8 {[%clk 0:00:14]} 26. Nd6 {[%clk 0:00:07]}  Bc6 {[%clk 0:00:14]} 27. Bb5 {[%clk 0:00:07]}  Bxb5 {[%clk 0:00:00]} 28. axb5 {[%clk 0:00:08]} 1-0